bitfinex/quotes_BTCUSD_20220111
["timestamp","ask_amount","ask_price","bid_price","bid_amount"]
[1641899083537,0.83348975,41632.0,41631.0,0.0011]
[1641899083735,0.83348975,41632.0,41629.0,0.0032]
[1641899083935,0.277585,41630.0,41629.0,0.0032]
[1641899084136,0.65483764,41630.0,41629.0,0.0032]
[1641899084337,0.325385,41630.0,41629.0,0.0032]
[1641899084793,0.340385,41630.0,41629.0,0.0032]
[1641899084989,0.340385,41630.0,41629.0,2.20855273]
[1641899085195,0.0628,41630.0,41629.0,0.0032]
[1641899085392,0.340385,41630.0,41629.0,0.0032]
[1641899086090,0.375385,41630.0,41629.0,0.0032]
[1641899086896,0.391385,41630.0,41629.0,0.0032]
[1641899087093,0.491385,41630.0,41629.0,0.0032]
[1641899087893,0.391385,41630.0,41629.0,0.0032]
[1641899088095,0.475385,41630.0,41629.0,0.0032]
[1641899088933,0.525385,41630.0,41629.0,0.0032]
[1641899090134,0.77560965,41630.0,41629.0,0.0032]
[1641899090938,0.79260965,41630.0,41629.0,0.0032]
[1641899092087,0.77560965,41630.0,41629.0,0.0032]
[1641899092891,0.78660965,41630.0,41629.0,0.0032]
[1641899094090,0.77560965,41630.0,41629.0,0.0032]
[1641899094888,0.78560965,41630.0,41629.0,0.0032]
[1641899095842,0.485385,41630.0,41629.0,0.0032]
[1641899096040,0.475385,41630.0,41629.0,0.0032]
[1641899096841,0.520385,41630.0,41629.0,0.0032]
[1641899098049,0.475385,41630.0,41629.0,0.0032]
[1641899098644,0.77941206,41630.0,41629.0,0.0032]
[1641899098844,0.82441206,41630.0,41629.0,0.0032]
[1641899100189,0.77941206,41630.0,41629.0,0.0032]
[1641899100392,0.475385,41630.0,41629.0,0.0032]
[1641899100790,0.521385,41630.0,41629.0,0.0032]
[1641899102194,0.427585,41630.0,41629.0,0.0032]
[1641899102794,0.443585,41630.0,41629.0,0.0032]
[1641899102994,0.443585,41630.0,41629.0,0.0532]
[1641899103244,0.016,41630.0,41629.0,0.15363513]
[1641899103439,0.016,41630.0,41629.0,0.428973]
[1641899104239,0.40738163,41638.0,41635.0,0.26223126]
[1641899104441,0.277585,41637.0,41635.0,0.26223126]
[1641899104638,0.06128245,41643.0,41629.0,0.0532]
[1641899105038,0.06128245,41643.0,41630.0,0.060039]
[1641899105440,0.06128245,41643.0,41630.0,0.41493954]
[1641899105744,0.34064739,41639.0,41634.0,0.32299072]
[1641899106140,0.05,41638.0,41634.0,0.32299072]
[1641899106541,0.060045,41640.0,41634.0,0.32299072]
[1641899106741,0.05,41642.0,41634.0,0.32299072]
[1641899106995,0.00124045,41643.0,41630.0,0.35490054]
[1641899107185,0.3518043,41637.0,41630.0,0.35490054]
[1641899107387,0.00124045,41643.0,41630.0,0.35490054]
[1641899107689,0.06128045,41643.0,41630.0,0.46494054]
[1641899107885,0.06128045,41643.0,41635.0,0.30075792]
[1641899108086,0.277585,41642.0,41635.0,0.57271695]
[1641899108487,0.41476231,41643.0,41635.0,0.57271695]
[1641899108685,0.277585,41642.0,41635.0,0.57271695]
[1641899109088,0.4159,41646.0,41636.0,0.39740267]
[1641899109887,0.47539456,41645.0,41636.0,0.39740267]
[1641899110086,0.47539456,41645.0,41637.0,0.00117222]
[1641899110387,0.4159,41646.0,41643.0,1.82628533]
[1641899111037,0.4659,41646.0,41637.0,0.00117222]
[1641899111238,0.060036,41644.0,41637.0,0.00117222]
[1641899111439,0.277585,41643.0,41637.0,0.00117222]
[1641899111638,0.327585,41643.0,41637.0,0.00117222]
[1641899112140,0.42317806,41642.0,41638.0,0.24415116]
[1641899112339,0.277585,41641.0,41638.0,0.24415116]
[1641899112537,0.05,41643.0,41638.0,0.24415116]
[1641899112937,0.41710527,41646.0,41638.0,0.24415116]
[1641899112938,0.62713927,41646.0,41638.0,0.24415116]
[1641899113342,0.4659,41646.0,41638.0,0.24415116]
[1641899113538,0.4659,41646.0,41641.0,0.28669628]
[1641899113739,0.4159,41646.0,41641.0,0.28669628]
[1641899114142,0.38253971,41641.0,41637.0,0.00117222]
[1641899114339,0.4159,41646.0,41637.0,0.00117222]
[1641899114340,0.41715012,41646.0,41637.0,0.00117222]
[1641899114589,0.41715012,41646.0,41638.0,0.10550916]
[1641899114789,0.4159,41646.0,41643.0,0.00125974]
[1641899114989,0.69887463,41653.0,41645.0,0.09875864]
[1641899115187,0.69887463,41653.0,41646.0,0.4294752]
[1641899115489,0.69887463,41653.0,41649.0,0.00123862]
[1641899115689,0.69887463,41653.0,41650.0,0.28817822]
[1641899116088,0.00343116,41657.0,41650.0,0.28817822]
[1641899116288,0.00343116,41657.0,41650.0,0.28940912]
[1641899116487,0.00343116,41657.0,41651.0,0.375773]
[1641899116689,0.5990354,41658.0,41650.0,0.40941912]
[1641899116889,0.00085782,41659.0,41651.0,0.37981105]
[1641899117088,0.05,41658.0,41651.0,0.37981105]
[1641899117287,0.00085782,41659.0,41651.0,0.37981105]
[1641899117688,0.35597679,41656.0,41651.0,0.34974857]
[1641899117890,0.35597679,41656.0,41650.0,0.002]
[1641899117891,0.50597679,41656.0,41650.0,0.002]
[1641899118093,0.36158036,41655.0,41650.0,0.002]
[1641899118346,0.277585,41654.0,41650.0,0.002]
[1641899118552,1.3788356,41651.0,41650.0,0.002]
[1641899118746,1.4266356,41651.0,41650.0,0.002]
[1641899118948,0.5266356,41651.0,41650.0,0.002]
[1641899119149,1.31575291,41651.0,41650.0,0.002]
[1641899119347,0.475385,41651.0,41650.0,0.002]
[1641899119548,0.78693403,41651.0,41650.0,0.002]
[1641899119948,0.475385,41651.0,41650.0,0.002]
[1641899120247,0.475385,41651.0,41650.0,0.00114549]
[1641899120647,0.85917988,41651.0,41650.0,0.00114549]
[1641899120848,0.87117988,41651.0,41650.0,0.00114549]
[1641899121748,0.487385,41651.0,41650.0,0.00114549]
[1641899122194,0.475385,41651.0,41650.0,0.00114549]
[1641899122994,0.488385,41651.0,41650.0,0.00114549]
[1641899124196,0.475385,41651.0,41650.0,0.00114549]
[1641899124798,0.325385,41651.0,41650.0,0.00114549]
[1641899124998,0.337385,41651.0,41641.0,0.45786572]
[1641899125399,0.0598,41651.0,41642.0,0.35545824]
[1641899125599,0.0598,41651.0,41642.0,0.41548124]
[1641899125842,0.012,41651.0,41649.0,2.65547173]
[1641899126248,0.15,41655.0,41650.0,0.35651111]
[1641899126443,0.12108897,41656.0,41655.0,0.00120994]
[1641899126647,0.12108897,41656.0,41655.0,0.28583572]
[1641899126846,0.00343114,41658.0,41657.0,0.00121467]
[1641899126847,0.12452011,41658.0,41657.0,0.00121467]
[1641899127244,0.12452011,41658.0,41657.0,0.33057935]
[1641899127446,0.38906524,41665.0,41657.0,0.33057935]
[1641899127447,0.69887463,41668.0,41657.0,0.70635235]
[1641899127646,0.00085787,41660.0,41657.0,0.38057935]
[1641899127845,0.00085787,41660.0,41657.0,0.05121467]
[1641899128247,0.00085787,41660.0,41657.0,0.00121467]
[1641899128648,0.4159,41666.0,41657.0,0.00121467]
[1641899128850,0.34257434,41660.0,41657.0,0.00121467]
[1641899129048,0.36457434,41660.0,41657.0,0.00121467]
[1641899129248,0.36457434,41660.0,41650.0,1.62592236]
[1641899129249,0.41457434,41660.0,41650.0,1.37912236]
[1641899129508,0.51457434,41660.0,41651.0,0.0012389]
[1641899129898,0.51457434,41660.0,41657.0,2.0]
[1641899130099,0.060013,41662.0,41657.0,2.0]
[1641899130300,0.060009,41664.0,41657.0,2.0]
[1641899130501,0.4159,41666.0,41657.0,2.0]
[1641899130702,0.120036,41663.0,41657.0,2.0]
[1641899131102,0.44888148,41659.0,41657.0,2.0]
[1641899131506,0.59888148,41659.0,41657.0,2.0]
[1641899132104,0.90266847,41659.0,41657.0,2.0]
[1641899132301,0.59888148,41659.0,41657.0,2.0]
[1641899133104,0.61088148,41659.0,41657.0,2.0]
[1641899134941,0.62288148,41659.0,41657.0,2.0]
[1641899135141,0.61088148,41659.0,41657.0,2.0]
[1641899135342,0.46088148,41659.0,41657.0,2.0]
[1641899135541,0.012,41659.0,41657.0,2.0]
[1641899136343,0.00085787,41660.0,41657.0,2.0]
[1641899136994,0.01185787,41660.0,41657.0,2.0]
[1641899137188,0.011,41660.0,41657.0,2.0]
[1641899138289,0.110015,41661.0,41657.0,2.0]
[1641899138489,0.11087286,41661.0,41657.0,2.0]
[1641899138891,0.05085786,41661.0,41657.0,2.0]
[1641899139192,0.01185786,41661.0,41657.0,2.0]
[1641899139394,0.00685786,41661.0,41657.0,2.0]
[1641899139792,0.00771572,41661.0,41657.0,2.0]
[1641899140393,0.00085786,41661.0,41657.0,2.0]
[1641899140841,0.09840074,41663.0,41657.0,2.0]
[1641899141041,0.012,41661.0,41657.0,2.0]
[1641899142244,0.09840074,41663.0,41657.0,2.0]
[1641899142842,0.15841274,41663.0,41657.0,2.0]
[1641899143042,0.169812,41663.0,41657.0,2.0]
[1641899143443,0.17066983,41663.0,41657.0,2.0]
[1641899143844,0.45675333,41661.0,41657.0,2.0]
[1641899144045,0.10782,41660.0,41657.0,2.0]
[1641899144991,0.11582,41660.0,41657.0,2.0]
[1641899145192,0.07582,41660.0,41657.0,2.0]
[1641899146593,0.0558,41660.0,41657.0,2.0]
[1641899146794,0.008,41660.0,41657.0,2.0]
[1641899146994,0.012,41660.0,41657.0,2.0]
[1641899148246,0.05,41662.0,41657.0,2.0]
[1641899148449,0.10072774,41663.0,41657.0,2.0]
[1641899148450,0.15072774,41663.0,41657.0,2.0]
[1641899148647,0.05072774,41663.0,41657.0,2.060004]
[1641899148847,0.00072774,41663.0,41657.0,2.060004]
[1641899149048,0.009,41663.0,41658.0,0.35239564]
[1641899149248,0.009,41663.0,41658.0,0.3507456]
[1641899149548,0.00972776,41663.0,41660.0,0.32639594]
[1641899150149,0.00972776,41663.0,41657.0,2.004]
[1641899150353,0.0478,41665.0,41657.0,2.0012389]
[1641899150549,0.00072777,41664.0,41657.0,2.0012389]
[1641899151047,0.01472777,41664.0,41657.0,2.0012389]
[1641899151349,0.060008,41660.0,41658.0,0.32818146]
[1641899153097,0.071008,41660.0,41658.0,0.32818146]
[1641899154398,0.12087782,41663.0,41658.0,0.32818146]
[1641899154399,0.00085782,41663.0,41659.0,0.375773]
[1641899154601,0.00085782,41663.0,41661.0,0.00127927]
[1641899155200,0.053,41663.0,41661.0,0.00127927]
[1641899156441,0.00085784,41664.0,41661.0,0.00127927]
[1641899157142,0.02085784,41664.0,41661.0,0.00127927]
[1641899157345,0.02085784,41664.0,41661.0,0.35231115]
[1641899157540,0.02,41664.0,41661.0,0.35231115]
[1641899157740,0.02,41664.0,41661.0,0.00127927]
[1641899158339,0.00085784,41665.0,41661.0,0.00127927]
[1641899158740,0.06,41666.0,41661.0,0.00127927]
[1641899159040,0.01885783,41665.0,41661.0,0.00127927]
[1641899160003,0.060009,41661.0,41657.0,2.0]
[1641899160697,0.34440265,41661.0,41657.0,2.0]
[1641899161096,0.120027,41660.0,41657.0,2.0]
[1641899161295,0.120027,41660.0,41657.0,1.995]
[1641899161497,0.068009,41661.0,41657.0,1.995]
[1641899162398,0.060009,41661.0,41657.0,1.995]
[1641899162998,0.110009,41661.0,41657.0,1.995]
[1641899163246,0.125009,41661.0,41657.0,1.995]
[1641899164344,0.110009,41661.0,41657.0,1.995]
[1641899164544,0.39255683,41660.0,41657.0,1.995]
[1641899164747,0.05,41659.0,41657.0,1.514783]
[1641899164945,0.37808581,41658.0,41657.0,1.514783]
[1641899165148,0.52714143,41658.0,41657.0,1.514783]
[1641899165345,1.17464143,41658.0,41657.0,1.034509]
[1641899165645,2.19590112,41658.0,41657.0,0.98171432]
[1641899166146,2.19590112,41658.0,41657.0,0.50145432]
[1641899166345,1.92457924,41658.0,41657.0,0.50145432]
[1641899166996,2.5234554,41658.0,41657.0,0.50145432]
[1641899167191,2.5344554,41658.0,41657.0,0.50145432]
[1641899167391,2.53319978,41658.0,41657.0,0.50145432]
[1641899168391,2.58222678,41658.0,41657.0,0.50145432]
[1641899169090,2.59222678,41658.0,41657.0,0.50145432]
[1641899169491,2.53219978,41658.0,41657.0,0.50145432]
[1641899170291,1.92332362,41658.0,41657.0,0.50145432]
[1641899170495,1.98335062,41658.0,41649.0,0.00027415]
[1641899170744,0.30827445,41652.0,41644.0,0.00120133]
[1641899170943,0.35284422,41651.0,41649.0,0.00027415]
[1641899171143,0.325385,41650.0,41649.0,0.00027415]
[1641899171443,0.63047185,41650.0,41649.0,0.00027415]
[1641899171642,0.73047185,41650.0,41649.0,0.00027415]
[1641899171842,0.73047185,41650.0,41641.0,0.2846394]
[1641899172046,0.45288685,41650.0,41647.0,0.00027419]
[1641899172343,0.277585,41649.0,41647.0,0.00027419]
[1641899172543,0.34911889,41648.0,41647.0,0.00027419]
[1641899172744,0.62670389,41648.0,41647.0,0.00027419]
[1641899172942,0.72670389,41648.0,41647.0,0.00027419]
[1641899173148,1.10982583,41648.0,41641.0,0.2846394]
[1641899173344,1.10982583,41648.0,41645.0,0.00025378]
[1641899173345,0.46011889,41648.0,41645.0,0.00025378]
[1641899173544,0.277585,41647.0,41645.0,0.00025378]
[1641899173744,0.327585,41647.0,41645.0,0.00025378]
[1641899173950,0.060034,41646.0,41645.0,0.00025378]
[1641899174246,0.15,41647.0,41641.0,0.58625571]
[1641899174503,0.15,41647.0,41643.0,0.0002538]
[1641899174891,0.45079102,41647.0,41643.0,0.0002538]
[1641899175092,0.46779102,41647.0,41643.0,0.0002538]
[1641899175294,0.060032,41646.0,41643.0,0.0002538]
[1641899175494,0.277585,41644.0,41633.0,0.2965]
[1641899175700,0.40257002,41643.0,41632.0,0.00211547]
[1641899175895,0.0478,41642.0,41632.0,0.00211547]
[1641899176293,0.44136379,41633.0,41632.0,0.00211547]
[1641899176495,0.48916379,41633.0,41632.0,0.00211547]
[1641899176695,0.86674879,41633.0,41632.0,0.0011]
[1641899177197,0.87874879,41633.0,41632.0,0.0011]
[1641899178344,0.86674879,41633.0,41632.0,0.0011]
[1641899178540,0.425385,41633.0,41632.0,0.0011]
[1641899178743,0.0478,41633.0,41632.0,0.0011]
[1641899179243,0.0708,41633.0,41632.0,0.0011]
[1641899179844,0.023,41633.0,41632.0,0.376873]
[1641899180444,0.1478,41640.0,41632.0,0.376873]
[1641899180645,0.1478,41640.0,41632.0,0.0011]
[1641899180852,0.0478,41640.0,41632.0,0.0011]
[1641899181048,0.060032,41646.0,41638.0,0.27424073]
[1641899181246,2.6494,41648.0,41639.0,0.37911032]
[1641899181247,0.016,41640.0,41639.0,0.37911032]
[1641899181449,0.016,41640.0,41639.0,1.48087143]
[1641899182299,0.65889816,41653.0,41639.0,1.72070366]
[1641899182300,0.59887616,41653.0,41639.0,1.72070366]
[1641899182499,0.59887616,41653.0,41639.0,1.19493066]
[1641899182697,0.59887616,41654.0,41651.0,0.27923132]
[1641899182901,0.59887616,41654.0,41651.0,0.57135068]
[1641899183099,0.041,41653.0,41652.0,0.35971755]
[1641899183299,0.041,41653.0,41651.0,0.36522932]
[1641899183504,0.041,41653.0,41650.0,0.00127973]
[1641899183699,0.041,41653.0,41644.0,0.00025619]
[1641899183899,0.041,41653.0,41642.0,0.40224173]
[1641899184201,0.041,41653.0,41649.0,0.00025614]
[1641899184202,0.060025,41652.0,41649.0,0.00025614]
[1641899185301,0.071025,41652.0,41649.0,0.009]
[1641899185501,0.121025,41652.0,41649.0,0.009]
[1641899185745,0.011,41652.0,41649.0,0.009]
[1641899186549,0.48775207,41656.0,41644.0,0.2664095]
[1641899186550,0.48775207,41656.0,41648.0,0.0002563]
[1641899186746,0.060024,41652.0,41648.0,0.0002563]
[1641899187146,0.05,41654.0,41648.0,0.0002563]
[1641899187647,0.02,41656.0,41651.0,0.30421861]
[1641899187848,0.277585,41655.0,41651.0,0.30421861]
[1641899188148,0.080019,41656.0,41651.0,0.30421861]
[1641899188149,0.02,41656.0,41651.0,0.30421861]
[1641899188350,1.0,41659.0,41651.0,0.39928861]
[1641899188550,1.0,41659.0,41658.0,0.3440095]
[1641899188755,1.277585,41659.0,41658.0,0.3440095]
[1641899189251,1.326585,41659.0,41658.0,0.3440095]
[1641899189505,1.049,41659.0,41656.0,0.39470252]
[1641899189702,1.049,41659.0,41653.0,2.28384433]
[1641899189902,1.049,41659.0,41649.0,0.30900135]
[1641899190103,1.049,41659.0,41658.0,0.00112002]
[1641899190302,1.326585,41659.0,41658.0,0.00112002]
[1641899190502,1.277585,41659.0,41658.0,0.00112002]
[1641899190703,1.427585,41659.0,41658.0,0.00112002]
[1641899191103,1.488585,41659.0,41658.0,0.00112002]
[1641899191904,1.478585,41659.0,41658.0,0.00112002]
[1641899192504,1.417585,41659.0,41658.0,0.05112002]
[1641899193246,1.436585,41659.0,41658.0,0.05112002]
[1641899194450,1.417585,41659.0,41658.0,0.05112002]
[1641899195148,1.433585,41659.0,41658.0,0.05]
[1641899196548,1.417585,41659.0,41658.0,0.05]
[1641899197196,1.469585,41659.0,41658.0,0.05]
[1641899198596,1.417585,41659.0,41658.0,0.05]
[1641899199004,1.277585,41659.0,41658.0,0.05]
[1641899199198,1.294585,41659.0,41658.0,0.05]
[1641899200398,1.277585,41659.0,41658.0,0.05]
[1641899200846,1.427585,41659.0,41658.0,0.05]
[1641899201046,1.277585,41659.0,41658.0,0.05]
[1641899201247,1.288585,41659.0,41658.0,0.05]
[1641899201450,1.011,41659.0,41658.0,0.05]
[1641899201652,1.011,41659.0,41658.0,0.32037211]
[1641899201847,1.011,41659.0,41658.0,0.47037211]
[1641899202049,1.011,41659.0,41658.0,0.32037211]
[1641899202248,0.00082899,41663.0,41658.0,0.87037211]
[1641899202451,0.00082899,41663.0,41659.0,0.773573]
[1641899202651,0.59887616,41669.0,41659.0,0.773573]
[1641899202652,0.14951087,41669.0,41661.0,0.00124501]
[1641899202852,0.14951087,41669.0,41668.0,0.02153475]
[1641899203053,0.14951087,41671.0,41668.0,0.06933475]
[1641899203252,0.01,41669.0,41668.0,0.06933475]
[1641899203451,0.01,41669.0,41668.0,1.02559175]
[1641899203851,0.01,41669.0,41668.0,0.68376798]
[1641899204052,0.01,41669.0,41668.0,0.37467709]
[1641899204255,0.01,41669.0,41668.0,0.04907475]
[1641899204506,0.01,41669.0,41668.0,0.0478]
[1641899204899,0.01,41669.0,41668.0,0.50075728]
[1641899205098,0.059993,41674.0,41668.0,0.0478]
[1641899205299,0.013,41669.0,41668.0,0.0548]
[1641899206501,0.00059862,41673.0,41668.0,0.0478]
[1641899206702,0.119993,41675.0,41668.0,0.0478]
[1641899206908,0.0008578,41671.0,41668.0,0.0478]
[1641899207702,0.0008578,41671.0,41670.0,0.00129907]
[1641899207905,0.4159,41676.0,41670.0,0.37707207]
[1641899208250,0.4159,41676.0,41675.0,0.00128498]
[1641899209247,0.4159,41676.0,41675.0,0.00328498]
[1641899210450,0.4159,41676.0,41675.0,0.00128498]
[1641899211253,0.4159,41676.0,41675.0,0.00528498]
[1641899212498,0.4159,41676.0,41675.0,0.00128498]
[1641899212897,0.4159,41676.0,41675.0,0.18401298]
[1641899213198,0.4159,41676.0,41675.0,0.18601298]
[1641899213498,0.4659,41676.0,41675.0,0.184728]
[1641899213701,0.85071523,41676.0,41675.0,0.184728]
[1641899213898,1.84851523,41676.0,41675.0,0.184728]
[1641899214099,1.23254703,41676.0,41675.0,0.184728]
[1641899214299,0.94851523,41676.0,41675.0,0.184728]
[1641899214499,0.95851623,41676.0,41675.0,0.182728]
[1641899214897,0.95851623,41676.0,41675.0,0.177728]
[1641899215097,0.79851523,41676.0,41675.0,0.177728]
[1641899215402,0.802285,41676.0,41675.0,0.177728]
[1641899215598,0.754485,41676.0,41675.0,0.177728]
[1641899216452,0.743485,41676.0,41675.0,0.177728]
[1641899216652,0.4659,41676.0,41675.0,0.177728]
[1641899217052,0.87758223,41676.0,41675.0,0.177728]
[1641899217256,1.16816723,41676.0,41675.0,0.177728]
[1641899217451,1.06816723,41676.0,41675.0,0.177728]
[1641899217853,0.11997984,41684.0,41675.0,0.177728]
[1641899217854,0.00343051,41684.0,41675.0,0.17896119]
[1641899218058,0.00343051,41684.0,41683.0,0.02683025]
[1641899218254,0.00343051,41684.0,41683.0,0.10976025]
[1641899218453,0.00343051,41684.0,41683.0,0.48542325]
[1641899218653,0.4415,41693.0,41683.0,1.01696059]
[1641899218855,0.4415,41693.0,41683.0,1.08999015]
[1641899219054,0.4415,41693.0,41690.0,0.32607565]
[1641899219254,0.4415,41693.0,41692.0,0.00128126]
[1641899219508,0.4415,41693.0,41692.0,0.08446126]
[1641899220300,0.80240688,41697.0,41692.0,0.08446126]
[1641899220501,0.4259,41699.0,41692.0,0.08446126]
[1641899220700,0.01,41699.0,41692.0,0.08446126]
[1641899221200,0.01,41699.0,41696.0,0.44380614]
[1641899221404,0.059959,41697.0,41684.0,0.73143112]
[1641899221701,0.059959,41697.0,41684.0,0.61151712]
[1641899222205,0.059959,41697.0,41686.0,0.3085874]
[1641899222406,0.059966,41695.0,41691.0,0.33269062]
[1641899222604,0.00085766,41693.0,41691.0,0.33269062]
[1641899223452,0.059966,41695.0,41691.0,0.33269062]
[1641899223858,0.00085765,41694.0,41692.0,0.00129595]
[1641899224253,0.00085765,41694.0,41693.0,0.375663]
[1641899224456,0.00085765,41694.0,41693.0,0.71147601]
[1641899224857,0.01,41699.0,41689.0,1.08369605]
[1641899224858,0.059955,41698.0,41689.0,1.08369605]
[1641899225064,0.00085764,41696.0,41689.0,1.08369605]
[1641899225257,0.00085764,41696.0,41693.0,0.009]
[1641899225957,0.01,41699.0,41693.0,0.009]
[1641899226159,0.00085763,41697.0,41693.0,0.009]
[1641899226356,0.05085763,41697.0,41693.0,0.009]
[1641899226558,0.05085763,41697.0,41689.0,0.47340274]
[1641899226559,0.00085763,41697.0,41689.0,0.47340274]
[1641899227207,0.109963,41698.0,41689.0,0.47340274]
[1641899227411,0.00083745,41695.0,41689.0,0.47340274]
[1641899227612,0.00083745,41695.0,41690.0,0.30120447]
[1641899227808,0.00083745,41695.0,41691.0,0.24008576]
[1641899228407,0.29539293,41697.0,41691.0,0.23930776]
[1641899228608,0.00083745,41695.0,41691.0,0.23930776]
[1641899228911,0.10334928,41701.0,41691.0,0.23930776]
[1641899228912,0.01060883,41703.0,41694.0,0.00128222]
[1641899229112,0.05840883,41704.0,41702.0,0.00128025]
[1641899229309,0.01060883,41704.0,41703.0,0.00125089]
[1641899229508,0.01060883,41704.0,41703.0,0.08106089]
[1641899229908,0.01060883,41704.0,41703.0,0.35859492]
[1641899230315,0.01060883,41704.0,41703.0,0.08106089]
[1641899230509,1.42920391,41708.0,41703.0,0.13106089]
[1641899230756,0.4159,41708.0,41703.0,0.08106089]
[1641899231157,0.4159,41708.0,41703.0,0.00125089]
[1641899231358,0.4289,41708.0,41705.0,0.26773815]
[1641899231561,0.4289,41708.0,41703.0,0.13011189]
[1641899231958,0.488843,41708.0,41703.0,0.009]
[1641899232559,0.475843,41708.0,41703.0,0.30277383]
[1641899232759,0.475843,41708.0,41702.0,0.26180563]
[1641899233259,0.00082654,41707.0,41702.0,0.27380563]
[1641899234361,0.4219,41708.0,41706.0,0.00121311]
[1641899234599,0.00085757,41707.0,41706.0,0.00121311]
[1641899234800,0.00085757,41707.0,41706.0,0.37687611]
[1641899235299,0.00085757,41707.0,41706.0,0.77390427]
[1641899235500,0.60946683,41709.0,41706.0,0.77390427]
[1641899235501,0.60946683,41709.0,41706.0,0.44187611]
[1641899235706,0.61032439,41709.0,41706.0,0.01621311]
[1641899236099,0.00085756,41709.0,41706.0,0.01621311]
[1641899236802,0.0003917,41712.0,41707.0,0.375663]
[1641899237000,0.0003917,41712.0,41706.0,0.01621311]
[1641899237001,0.00085755,41710.0,41706.0,0.01621311]
[1641899237201,0.35064495,41710.0,41702.0,0.67351712]
[1641899237398,0.35064495,41710.0,41707.0,0.01]
[1641899237799,0.00085755,41710.0,41707.0,0.01]
[1641899238003,0.61385853,41712.0,41709.0,0.00129341]
[1641899238256,0.61385853,41712.0,41707.0,0.01]
[1641899238450,0.60946683,41710.0,41706.0,0.00121791]
[1641899239249,0.60946683,41710.0,41706.0,0.01221791]
[1641899239451,0.61032438,41710.0,41706.0,0.01221791]
[1641899239850,0.00085755,41710.0,41706.0,0.01221791]
[1641899240252,0.05994,41709.0,41706.0,0.011]
[1641899240451,0.60946683,41711.0,41706.0,0.011]
[1641899240651,0.00085755,41710.0,41705.0,0.26441281]
[1641899241153,0.60571608,41713.0,41707.0,0.29741787]
[1641899241553,0.3497874,41714.0,41707.0,0.29741787]
[1641899241752,0.00342967,41716.0,41708.0,1.86971617]
[1641899241753,0.71104463,41716.0,41708.0,1.86971617]
[1641899242007,0.71104463,41716.0,41708.0,1.91971617]
[1641899242202,0.059931,41714.0,41705.0,0.27541281]
[1641899242405,0.059931,41714.0,41707.0,0.05]
[1641899242406,0.3497874,41713.0,41707.0,0.05]
[1641899242603,0.3497874,41713.0,41705.0,0.011]
[1641899242802,0.3997874,41713.0,41705.0,0.011]
[1641899243002,0.3497874,41713.0,41705.0,0.011]
[1641899243203,0.3497874,41713.0,41703.0,0.96766611]
[1641899243407,0.059935,41712.0,41707.0,0.32973633]
[1641899243604,0.76104463,41715.0,41705.0,0.002]
[1641899244003,0.05,41715.0,41705.0,0.002]
[1641899244203,0.71104463,41716.0,41705.0,0.002]
[1641899244405,0.059931,41714.0,41710.0,0.24611162]
[1641899244605,0.70604463,41716.0,41710.0,0.24611162]
[1641899244804,0.70604463,41716.0,41709.0,0.00123976]
[1641899245005,0.70604463,41716.0,41711.0,0.28159237]
[1641899245406,0.00085751,41715.0,41711.0,0.33159237]
[1641899245607,0.00085751,41715.0,41711.0,0.28159237]
[1641899245852,0.00085751,41715.0,41709.0,0.00723976]
[1641899246253,0.00085751,41715.0,41714.0,0.32277308]
[1641899246453,0.4659,41719.0,41714.0,0.32277308]
[1641899246655,0.059931,41716.0,41709.0,0.00123976]
[1641899246853,0.059931,41716.0,41709.0,0.32790045]
[1641899247158,0.059931,41716.0,41709.0,0.00123976]
[1641899247359,0.1,41719.0,41709.0,0.005]
[1641899247553,0.05,41719.0,41712.0,0.33487149]
[1641899247755,0.00085752,41715.0,41712.0,0.33487149]
[1641899247955,0.05,41719.0,41712.0,0.33487149]
[1641899247956,0.49811073,41718.0,41712.0,0.33487149]
[1641899248156,0.49811073,41718.0,41712.0,0.43382863]
[1641899248355,0.49811073,41718.0,41714.0,0.28716427]
[1641899248558,0.04585752,41719.0,41714.0,0.28716427]
[1641899249356,0.04585752,41719.0,41714.0,0.29216427]
[1641899249606,0.04585752,41719.0,41714.0,0.005]
[1641899250007,0.6082228,41718.0,41714.0,0.005]
[1641899250607,0.6082228,41718.0,41715.0,0.30148584]
[1641899250805,0.6082228,41718.0,41714.0,0.005]
[1641899251213,0.6082228,41718.0,41712.0,0.38615863]
[1641899251407,0.60902777,41718.0,41714.0,0.006]
[1641899252006,0.00080497,41718.0,41714.0,0.006]
[1641899252407,0.65408032,41719.0,41714.0,0.006]
[1641899252606,0.00080497,41718.0,41713.0,0.2753817]
[1641899252806,0.00080497,41718.0,41714.0,0.059915]
[1641899253250,0.00080497,41718.0,41713.0,0.2753817]
[1641899253452,0.00080497,41718.0,41714.0,0.007]
[1641899253651,0.04585752,41719.0,41714.0,0.007]
[1641899253855,0.00085749,41718.0,41714.0,0.007]
[1641899254252,0.4159,41729.0,41715.0,1.2]
[1641899254456,0.89581562,41734.0,41732.0,0.00129058]
[1641899254654,0.89581562,41734.0,41733.0,0.02968563]
[1641899254655,0.21201444,41734.0,41733.0,0.02968563]
[1641899255152,0.21201444,41734.0,41733.0,0.40534863]
[1641899255352,0.21201444,41734.0,41733.0,0.41234863]
[1641899255553,0.30734812,41743.0,41735.0,0.059888]
[1641899255854,0.30734812,41743.0,41733.0,0.00821563]
[1641899256456,0.29517119,41736.0,41733.0,0.00821563]
[1641899256652,0.29517119,41736.0,41733.0,0.00121563]
[1641899257108,0.29517119,41736.0,41735.0,0.00123162]
[1641899257304,0.29517119,41736.0,41731.0,0.05]
[1641899257507,0.29517119,41736.0,41733.0,0.006]
[1641899258107,0.63529515,41735.0,41733.0,0.006]
[1641899258407,0.40607892,41734.0,41733.0,0.006]
[1641899258606,0.40607892,41734.0,41726.0,0.00038823]
[1641899259306,0.25676607,41735.0,41727.0,0.351663]
[1641899259509,0.00085736,41737.0,41727.0,0.496753]
[1641899260307,0.00085736,41737.0,41728.0,0.00066727]
[1641899260607,0.31295122,41736.0,41729.0,0.375663]
[1641899260850,0.31295122,41736.0,41728.0,0.00066727]
[1641899261452,0.059904,41735.0,41728.0,0.00566727]
[1641899261654,0.059904,41735.0,41727.0,0.00566727]